bitfinex/quotes_SOLUSD_20240613
["timestamp","ask_amount","ask_price","bid_price","bid_amount"]
[1718248822657,7.16115899,150.3,150.18,6.268]
[1718248822856,39.93,150.29,150.18,6.098]
[1718248823768,7.16115899,150.3,150.19,0.17]
[1718248823960,15.5918,150.31,150.2,16.0692]
[1718248824285,15.5918,150.31,150.21,0.17]
[1718248825457,23.78,150.32,150.23,0.17]
[1718248825664,39.93,150.35,150.23,0.51]
[1718248825856,6.0867,150.32,150.23,0.51]
[1718248827572,6.0867,150.32,150.22,6.0867]
[1718248827769,23.78,150.31,150.22,6.0867]
[1718248828375,39.93,150.3,150.22,6.0867]
[1718248828675,23.78,150.27,150.22,6.0867]
[1718248828982,47.87903184,150.3,150.22,6.0867]
[1718248829381,59.93,150.29,150.22,6.0867]
[1718248830657,67.87903184,150.29,150.2,16.0692]
[1718248831084,0.51,150.28,150.2,16.0692]
[1718248831666,39.93,150.27,150.2,16.0692]
[1718248831988,39.93,150.25,150.18,6.562]
[1718248832172,20.0,150.24,150.18,6.562]
[1718248832691,83.71,150.24,150.18,6.562]
[1718248832857,83.71,150.24,150.16,16.3798]
[1718248836064,103.59,150.24,150.14,6.2803]
[1718248838205,119.88,150.23,150.14,6.2803]
[1718248838594,20.0,150.22,150.14,6.2803]
[1718248838901,72.75079674,150.24,150.14,6.2803]
[1718248839074,119.88,150.23,150.14,6.2803]
[1718248839274,52.87079674,150.24,150.14,6.2803]
[1718248839789,100.0,150.23,150.14,6.2803]
[1718248839972,20.0,150.22,150.14,6.2803]
[1718248840177,100.0,150.21,150.17,46.67456641]
[1718248840583,20.0,150.2,150.17,46.67456641]
[1718248840784,20.0,150.22,150.17,46.67456641]
[1718248842267,23.78,150.2,150.17,46.67456641]
[1718248846469,100.0,150.21,150.17,46.67456641]
[1718248846777,20.0,150.2,150.17,46.67456641]
[1718248846982,20.45,150.18,150.17,46.67456641]
[1718248849786,40.45,150.18,150.17,46.67456641]
[1718248851594,100.0,150.14,150.07,2.81720016]
[1718248851793,20.45,150.12,150.07,2.81720016]
[1718248858278,120.45,150.12,150.07,2.81720016]
[1718248858481,20.45,150.09,150.07,2.81720016]
[1718248860279,1.14033202,150.14,150.07,2.81720016]
[1718248860491,20.45,150.14,150.07,2.81720016]
[1718248860798,120.45,150.14,150.07,2.81720016]
[1718248861186,20.45,150.11,150.07,2.81720016]
[1718248862307,20.45,150.08,150.07,2.81720016]
[1718248863092,20.45,150.08,150.02,0.02]
[1718248863093,100.0,150.06,150.02,0.02]
[1718248863303,20.45,150.03,150.0,552.1]
[1718248863605,140.5,150.01,150.0,366.44]
[1718248863816,302.1221,150.01,150.0,210.3144213]
[1718248864111,302.1221,150.01,149.76,1.96804279]
[1718248864112,119.88,149.94,149.76,0.8267927]
[1718248864317,7.33087921,150.0,149.76,0.8267927]
[1718248864318,100.0,149.9,149.76,0.8267927]
[1718248864519,20.45,149.81,149.76,0.8267927]
[1718248864716,20.45,149.84,149.76,0.8267927]
[1718248864717,20.45,149.77,149.76,0.8267927]
[1718248865019,104.2645817,149.82,149.76,0.8267927]
[1718248865329,100.0,149.87,149.76,0.8267927]
[1718248865509,100.0,149.9,149.77,21.7245]
[1718248865730,5.27589758,149.94,149.77,21.7245]
[1718248865919,100.0,150.0,149.79,2.4699]
[1718248866235,100.0,150.0,149.77,21.7245]
[1718248866236,7.50739858,150.0,149.77,21.7245]
[1718248866517,100.0,150.01,149.78,21.0]
[1718248866830,21.0,150.03,149.83,2.4694]
[1718248866831,100.0,150.0,149.83,2.4694]
[1718248867120,100.0,150.01,149.85,2.639]
[1718248867327,8.0984534,150.06,149.87,22.0945]
[1718248867522,100.0,150.09,149.89,10.17]
[1718248867751,21.0,150.12,149.96,0.17]
[1718248868028,21.0,150.18,150.0,0.17]
[1718248868324,100.0,150.19,150.03,0.17]
[1718248868621,100.0,150.14,150.0,0.17]
[1718248868809,21.0,150.15,149.99,15.8176]
[1718248869120,100.0,150.16,149.99,15.8176]
[1718248869121,21.0,150.21,150.05,2.4658]
[1718248869325,100.0,150.24,150.06,3.1456]
[1718248869645,100.0,150.26,150.1,0.17]
[1718248869939,100.0,150.29,150.12,0.17]
[1718248870095,0.8267927,150.3,150.15,0.17]
[1718248870300,28.97137534,150.21,150.15,0.68]
[1718248870797,0.8267927,150.3,150.15,0.68]
[1718248871001,0.8267927,150.3,150.2,0.17]
[1718248871214,0.8267927,150.3,150.19,23.82]
[1718248871423,0.8267927,150.3,150.24,0.17]
[1718248871635,0.8267927,150.45,150.3,2.4616]
[1718248871929,0.8267927,150.45,150.34,0.17]
[1718248872239,0.8267927,150.45,150.38,0.17]
[1718248872438,0.8267927,150.45,150.38,20.68]
[1718248872602,0.8267927,150.45,150.24,24.9405]
[1718248872603,0.8267927,150.45,150.29,100.0]
[1718248872797,0.8267927,150.45,150.31,0.17]
[1718248873013,0.8267927,150.45,150.31,24.33]
[1718248873221,0.8267927,150.45,150.34,2.4609]
[1718248873424,0.8267927,150.45,150.36,0.17]
[1718248873622,0.8267927,150.45,150.41,2.6298]
[1718248873902,0.8267927,150.45,150.43,0.17]
[1718248874443,0.8267927,150.6,150.43,0.17]
[1718248874733,100.0,150.55,150.4,0.17]
[1718248874927,0.8267927,150.6,150.41,0.17]
[1718248875129,0.8267927,150.6,150.44,0.17]
[1718248875343,0.8267927,150.6,150.46,0.17]
[1718248875513,20.8267927,150.6,150.46,0.17]
[1718248875705,0.8267927,150.6,150.47,0.17]
[1718248875910,0.8267927,150.6,150.48,0.17]
[1718248876244,100.0,150.68,150.48,0.51]
[1718248876245,23.82,150.68,150.48,0.51]
[1718248876521,0.1433304,150.6,150.49,0.17]
[1718248876825,0.1433304,150.6,150.5,100.17]
[1718248877017,0.1433304,150.6,150.55,2.6276]
[1718248877337,1.1742873,150.75,150.57,0.17]
[1718248877650,1.1742873,150.75,150.58,4.9142]
[1718248877804,100.0,150.9,150.66,2.4557]
[1718248878003,10.0,150.91,150.63,23.99]
[1718248878004,110.0,150.91,150.68,0.17]
[1718248878200,23.82,150.93,150.72,0.17]
[1718248878503,23.82,150.93,150.68,0.17]
[1718248878504,24.9942873,150.97,150.81,0.17]
[1718248879615,1.1742873,150.97,150.81,0.17]
[1718248880031,101.1742873,150.97,150.81,0.17]
[1718248880338,101.1742873,150.97,150.72,10.0]
[1718248880339,23.82,150.91,150.72,10.0]
[1718248880506,23.82,150.87,150.67,102.4556]
[1718248880706,100.0,150.87,150.63,100.0]
[1718248881030,100.0,150.87,150.62,46.3898]
[1718248881031,123.82,150.91,150.66,23.82]
[1718248881220,123.82,150.91,150.69,2.4553]
[1718248881405,23.82,150.96,150.62,27.4826]
[1718248881406,23.82,150.87,150.62,22.5698]
[1718248881607,0.17,150.82,150.62,25.0262]
[1718248881852,23.82,150.83,150.62,22.5698]
[1718248882068,0.17,150.81,150.62,22.5698]
[1718248882211,100.0,150.77,150.53,29.9428]
[1718248882410,23.82,150.72,150.53,8.59251223]
[1718248882623,0.5190139,150.58,150.53,6.1228]
[1718248882827,0.5190139,150.58,150.45,29.9428]
[1718248883105,0.5190139,150.58,150.45,6.1228]
[1718248883618,0.5190139,150.58,150.49,2.4585]
[1718248883927,23.82,150.68,150.47,100.0]
[1718248883928,0.17,150.67,150.47,100.0]
[1718248884136,100.51,150.67,150.45,8.59382547]
[1718248884335,100.51,150.67,150.45,11.05292547]
[1718248884336,100.0,150.65,150.45,11.05292547]
[1718248884638,0.17,150.64,150.45,8.59382547]
[1718248884846,23.82,150.68,150.47,100.0]
[1718248885131,20.0,150.67,150.53,2.4579]
[1718248885334,26.4468,150.71,150.51,100.0]
[1718248885508,20.0,150.7,150.48,100.0]
[1718248885709,20.0,150.7,150.52,100.0]
[1718248885914,20.0,150.69,150.58,0.17]
[1718248886215,20.0,150.69,150.54,100.0]
[1718248886216,100.0,150.76,150.54,2.4577]
[1718248886434,23.82,150.73,150.55,0.51]
[1718248886739,100.0,150.79,150.61,0.17]
[1718248886924,23.82,150.8,150.65,0.17]
[1718248887115,100.0,150.82,150.66,2.4558]
[1718248887116,26.553534,150.82,150.66,2.4558]
[1718248887316,30.3018,150.88,150.67,3.1356]
[1718248887515,30.3018,150.88,150.67,0.68]
[1718248887719,30.3018,150.88,150.69,0.17]
[1718248887720,2.654197,150.87,150.69,0.17]
[1718248888030,23.82,150.96,150.78,0.17]
[1718248888348,23.82,150.96,150.78,0.51]
[1718248888525,100.0,150.93,150.75,20.0]
[1718248888731,23.82,150.88,150.74,16.3952]
[1718248889023,100.0,150.87,150.68,0.17]
[1718248889210,23.82,150.88,150.68,20.0]
[1718248889211,123.82,150.84,150.68,20.0]
[1718248889408,100.0,150.81,150.66,20.0]
[1718248889627,23.82,150.84,150.65,16.3952]
[1718248889628,100.0,150.82,150.65,16.3952]
[1718248889802,0.17,150.83,150.65,16.3952]
[1718248890008,23.82,150.84,150.65,16.3952]
[1718248890212,123.82,150.88,150.65,16.3952]
[1718248890430,100.0,150.83,150.65,16.3952]
[1718248890635,100.0,150.79,150.65,16.3952]
[1718248890816,100.0,150.79,150.63,6.0322]
[1718248890817,120.0,150.78,150.63,6.0322]
[1718248891012,20.0,150.77,150.63,6.0322]
[1718248891206,100.0,150.76,150.56,18.8525]
[1718248891411,20.0,150.75,150.57,2.4573]
[1718248892057,0.17,150.72,150.56,16.3952]
[1718248892330,0.17,150.66,150.47,24.0432]
[1718248892539,0.17,150.66,150.47,21.5844]
[1718248892540,0.17,150.64,150.47,21.5844]
[1718248892715,45.17,150.66,150.49,2.4585]
[1718248892716,0.51,150.66,150.49,2.4585]
[1718248892910,0.17,150.61,150.44,2.4593]
[1718248893131,100.0,150.58,150.4,10.0]
[1718248893336,0.17,150.52,150.3,6.0396]
[1718248893553,23.99,150.49,150.3,6.0396]
[1718248893861,23.82,150.49,150.3,6.0396]
[1718248894007,100.0,150.59,150.34,23.82]
[1718248894210,0.17,150.57,150.39,2.4602]
[1718248894420,0.17,150.53,150.34,2.47283345]
[1718248894626,100.0,150.52,150.32,23.82]
[1718248894826,0.17,150.49,150.31,10.0]
[1718248895020,23.82,150.47,150.31,2.4615]
[1718248895222,20.0,150.46,150.3,6.0396]
[1718248895775,23.82,150.56,150.34,100.0]
[1718248895922,20.0,150.55,150.4,2.46]
[1718248896125,100.0,150.54,150.33,23.82]
[1718248896328,20.0,150.53,150.39,2.4602]
[1718248896539,43.82,150.56,150.4,0.17]
[1718248896915,143.82,150.56,150.4,0.17]
[1718248897117,100.0,150.54,150.39,0.51]
[1718248897414,23.82,150.52,150.38,2.4604]
[1718248897614,20.0,150.51,150.39,0.17]
[1718248897817,20.0,150.53,150.4,2.4599]
[1718248898131,100.0,150.58,150.41,0.17]
[1718248898441,23.82,150.58,150.45,0.17]
[1718248898640,23.82,150.58,150.45,0.68]
[1718248899425,20.0,150.57,150.45,0.68]
[1718248899922,23.82,150.62,150.45,0.68]
[1718248900117,100.0,150.57,150.43,20.0]
[1718248900435,23.82,150.57,150.42,16.0709]
[1718248900943,100.0,150.54,150.33,15.1067]
[1718248901154,23.82,150.53,150.33,15.1067]
[1718248901326,20.0,150.52,150.36,100.0]
[1718248901516,123.82,150.56,150.33,53.6934]
[1718248901722,20.0,150.55,150.35,110.0]
[1718248902045,23.82,150.56,150.37,10.0]
[1718248902234,23.82,150.56,150.37,0.17]
[1718248902424,23.82,150.56,150.37,200.68]
[1718248902625,0.17,150.59,150.39,0.17]
[1718248902825,23.82,150.6,150.39,0.17]
[1718248902826,23.82,150.6,150.43,0.17]
[1718248903062,100.0,150.58,150.43,0.34]
[1718248903361,23.82,150.6,150.45,0.17]
[1718248903535,100.0,150.63,150.45,0.34]
[1718248903857,100.0,150.61,150.45,0.34]
[1718248904036,100.0,150.57,150.41,20.0]
[1718248904240,23.82,150.58,150.38,2.4604]
[1718248904438,23.82,150.58,150.37,20.0]
[1718248904637,45.68,150.57,150.37,20.0]
[1718248904842,145.68,150.57,150.38,2.4604]
[1718248905156,45.68,150.57,150.38,2.4604]
[1718248905359,20.0,150.56,150.38,100.0]
[1718248905663,20.0,150.57,150.4,2.4599]
[1718248905835,20.0,150.57,150.39,20.0]
[1718248906235,100.0,150.56,150.37,20.0]
[1718248906458,20.0,150.55,150.36,4.93300453]
[1718248906630,20.0,150.55,150.37,2.4605]
[1718248906829,20.0,150.55,150.38,100.0]
[1718248907031,20.0,150.57,150.41,2.4599]
[1718248907331,20.0,150.57,150.38,100.0]
[1718248907539,20.0,150.57,150.4,0.17]
[1718248909463,20.0,150.57,150.44,0.17]
[1718248909672,20.0,150.57,150.44,0.68]
[1718248910478,100.34,150.56,150.38,20.0]
[1718248910809,100.34,150.56,150.36,20.0]
[1718248910810,123.99,150.54,150.36,20.0]
[1718248910951,20.51,150.53,150.35,2.4608]
[1718248911151,20.51,150.53,150.34,20.0]
[1718248911152,20.0,150.53,150.37,2.4605]
[1718248911352,20.0,150.53,150.36,2.4607]
[1718248911962,20.0,150.53,150.36,100.0]
[1718248912159,20.0,150.53,150.37,20.0]
[1718248912355,20.0,150.57,150.4,2.4599]
[1718248912562,0.34,150.56,150.37,22.4604]
[1718248912759,100.0,150.55,150.36,2.4607]
[1718248913061,20.0,150.54,150.37,0.17]
[1718248913279,20.0,150.54,150.41,0.17]
[1718248913449,20.0,150.57,150.41,0.17]
[1718248913657,100.0,150.54,150.36,20.0]
[1718248913962,0.17,150.52,150.33,15.1067]
[1718248914167,20.51,150.53,150.36,2.4606]
[1718248914677,0.17,150.52,150.35,2.4608]
[1718248914860,100.17,150.52,150.33,15.1067]
[1718248915184,20.0,150.51,150.38,2.4604]
[1718248915369,20.17,150.53,150.33,20.029]
[1718248915559,20.17,150.53,150.37,2.4605]
[1718248916072,20.17,150.53,150.38,0.34]
[1718248916273,20.17,150.53,150.39,0.34]
[1718248916477,20.17,150.53,150.39,0.17]
[1718248916478,0.34,150.52,150.39,0.17]
[1718248916657,0.34,150.52,150.34,22.461]
[1718248916658,100.0,150.5,150.34,20.0]
[1718248916860,20.0,150.49,150.34,20.0]
[1718248917679,0.17,150.48,150.3,8.5012]
[1718248917872,0.51,150.48,150.31,2.4615]
[1718248918187,20.0,150.49,150.31,20.0]
[1718248918501,20.34,150.5,150.34,2.461]
[1718248918691,0.34,150.5,150.32,2.4612]
[1718248919073,20.34,150.5,150.34,0.17]
[1718248919384,0.34,150.5,150.34,2.6309]
[1718248919586,0.34,150.5,150.36,0.17]
[1718248919892,20.0,150.52,150.36,0.17]
[1718248920067,0.17,150.53,150.36,2.6306]
[1718248920262,6.401,150.54,150.38,0.17]
[1718248920492,100.0,150.51,150.36,0.17]
[1718248920692,119.88,150.51,150.34,20.0]
[1718248921001,100.0,150.46,150.3,6.0396]
[1718248921207,100.0,150.46,150.24,33.82]
[1718248921208,123.82,150.46,150.24,29.8664]
[1718248921366,20.0,150.45,150.27,2.4622]
[1718248921561,0.17,150.4,150.24,6.0464]
[1718248921761,20.0,150.4,150.24,106.0464]
[1718248921963,20.0,150.4,150.3,2.4616]
[1718248922173,20.0,150.4,150.28,2.462]
[1718248922391,20.17,150.46,150.3,2.4616]
[1718248922590,0.34,150.45,150.28,2.462]
[1718248922795,100.0,150.51,150.29,100.0]
[1718248922985,254.3,150.53,150.34,4.9218]
[1718248923180,6.401,150.54,150.38,0.17]
[1718248923379,6.401,150.54,150.37,20.68]
[1718248923696,16.1917,150.57,150.42,2.6297]
[1718248923891,30.0926,150.6,150.38,111.3766]
[1718248923892,30.0926,150.6,150.44,0.17]
[1718248924069,6.2726,150.6,150.46,0.17]
[1718248924273,6.2726,150.6,150.46,0.68]
[1718248924469,6.2726,150.6,150.47,0.17]
[1718248924695,6.2726,150.6,150.46,0.17]
[1718248924880,100.0,150.63,150.47,0.17]
[1718248925197,100.0,150.61,150.46,0.17]
[1718248925498,100.0,150.62,150.46,0.34]
[1718248925681,66.679801,150.64,150.39,20.0]
[1718248925682,100.0,150.59,150.39,20.0]
[1718248926001,0.34,150.58,150.4,0.17]
[1718248926170,23.82,150.59,150.4,100.0]
[1718248926365,100.17,150.58,150.41,20.0]
[1718248926567,100.17,150.58,150.38,6.4559]
[1718248926568,100.17,150.56,150.38,6.4559]
[1718248926764,100.0,150.53,150.38,6.4559]
[1718248926991,20.34,150.52,150.38,6.4559]
[1718248927180,20.0,150.52,150.38,6.4559]
[1718248927392,0.17,150.52,150.38,6.4559]
[1718248927675,0.17,150.52,150.29,12.3091]
[1718248927676,100.0,150.49,150.32,6.0537]
[1718248927877,0.17,150.48,150.32,6.0537]
[1718248928080,100.0,150.45,150.29,16.331]
[1718248928276,20.0,150.44,150.29,16.331]
[1718248928685,0.51,150.43,150.26,6.1289]
[1718248929182,20.51,150.43,150.26,6.1289]
[1718248929384,145.17,150.42,150.26,6.1289]
[1718248929592,45.17,150.42,150.26,6.1289]
[1718248929898,20.0,150.41,150.26,6.1289]
[1718248930621,120.0,150.42,150.26,6.1289]
[1718248930774,100.0,150.4,150.22,15.0475]
[1718248930971,20.17,150.39,150.22,15.0475]
[1718248931388,20.0,150.39,150.26,2.4623]
[1718248931599,20.0,150.42,150.24,2.4625]
[1718248931774,45.34,150.41,150.23,2.4628]
[1718248932091,20.0,150.4,150.26,2.4623]
[1718248932291,23.82,150.48,150.29,2.4617]
[1718248932476,100.0,150.45,150.26,20.0]
[1718248932677,100.0,150.45,150.27,0.34]
[1718248932990,100.0,150.45,150.22,115.0475]
[1718248932991,100.0,150.43,150.23,20.0]
[1718248933306,23.82,150.44,150.23,120.0]
[1718248933479,100.0,150.42,150.23,24.93734409]
[1718248933682,45.68,150.41,150.23,24.93734409]
[1718248933888,20.0,150.4,150.25,2.4624]
[1718248934089,23.82,150.42,150.23,20.0]
[1718248934090,20.0,150.41,150.23,20.0]
[1718248934286,20.0,150.41,150.27,2.4621]
[1718248934678,23.82,150.42,150.3,0.17]
[1718248934898,100.0,150.47,150.33,0.34]
[1718248935097,100.0,150.47,150.26,0.17]
[1718248935313,23.82,150.48,150.3,2.4617]
[1718248935519,23.82,150.48,150.32,0.17]
[1718248936313,115.6153,150.51,150.34,0.17]
[1718248936605,115.6153,150.51,150.34,0.68]
[1718248936981,115.6153,150.51,150.34,0.8828707]
[1718248937504,100.0,150.49,150.34,0.8828707]
[1718248937710,100.0,150.47,150.34,0.2028707]
[1718248937877,23.82,150.48,150.34,0.2028707]
[1718248938078,20.0,150.47,150.34,0.2028707]
[1718248938275,120.0,150.47,150.34,0.2028707]
[1718248938480,0.17,150.43,150.34,0.2028707]
[1718248939001,65.51,150.43,150.34,0.2028707]
[1718248939301,20.0,150.43,150.34,0.2028707]
[1718248940300,0.34,150.42,150.34,0.2028707]
[1718248940502,100.34,150.41,150.34,0.2028707]
[1718248940700,0.17,150.39,150.34,0.2028707]
[1718248941009,0.17,150.37,150.34,0.2028707]
[1718248941510,65.68,150.37,150.34,0.2028707]
[1718248941717,100.0,150.35,150.34,0.2028707]
[1718248941928,165.51,150.35,150.34,0.2028707]
[1718248942223,185.56,150.35,150.34,0.2028707]
[1718248943012,165.68,150.35,150.34,0.2028707]
[1718248943492,185.56,150.35,150.34,0.2028707]
[1718248943689,100.0,150.32,150.27,0.8415334]
[1718248944012,85.56,150.35,150.27,0.8415334]
[1718248944013,0.17,150.29,150.27,0.8415334]
[1718248944209,100.17,150.28,150.27,0.8415334]
[1718248944401,20.0,150.28,150.27,0.8415334]
[1718248944594,20.17,150.28,150.27,0.8415334]
[1718248944902,65.51,150.28,150.27,0.8415334]
[1718248945096,20.0,150.28,150.27,0.8415334]
[1718248945491,100.0,150.38,150.27,0.8415334]
[1718248945698,23.82,150.36,150.27,0.8415334]
[1718248945892,23.82,150.4,150.27,0.8415334]
[1718248946512,23.82,150.44,150.28,0.34]
[1718248946714,147.140934,150.46,150.29,0.17]
[1718248947003,147.140934,150.46,150.29,0.34]
[1718248947218,127.260934,150.46,150.29,0.34]
[1718248947647,100.0,150.42,150.29,0.34]
[1718248947834,100.0,150.42,150.27,7.2239334]
[1718248948015,27.260934,150.46,150.27,7.2239334]
[1718248948016,20.0,150.41,150.27,7.2239334]
[1718248948215,100.0,150.45,150.28,0.34]
[1718248948416,0.34,150.44,150.28,0.34]
[1718248948640,45.34,150.44,150.28,0.34]
[1718248948955,0.17,150.42,150.28,0.34]
[1718248949153,45.34,150.42,150.28,0.17]
[1718248949454,120.0,150.41,150.28,0.34]
[1718248949745,45.34,150.4,150.27,7.2239334]
[1718248949914,20.0,150.39,150.27,7.2239334]
[1718248950111,120.0,150.39,150.27,7.2239334]
[1718248950312,45.68,150.38,150.27,0.8415334]
[1718248950517,20.0,150.37,150.27,0.8415334]
[1718248950815,69.33,150.36,150.27,0.8415334]
[1718248951016,20.0,150.35,150.27,0.8415334]
[1718248951536,45.17,150.34,150.27,0.8415334]
[1718248951718,20.0,150.33,150.27,0.8415334]
[1718248951916,0.34,150.36,150.27,0.8415334]
[1718248952144,45.17,150.36,150.27,0.8415334]
[1718248952321,0.51,150.35,150.27,0.8415334]
[1718248952533,20.51,150.35,150.27,0.8415334]
[1718248952734,120.51,150.35,150.27,0.8415334]
[1718248952924,0.17,150.32,150.27,0.8415334]
[1718248953117,20.68,150.32,150.27,0.8415334]
[1718248953311,45.0,150.31,150.27,0.8415334]
[1718248953523,20.0,150.3,150.27,0.8415334]
[1718248954042,45.51,150.29,150.27,0.8415334]
[1718248954247,100.17,150.28,150.27,0.8415334]
[1718248954446,165.68,150.28,150.27,0.8415334]
[1718248954648,85.56,150.28,150.27,0.8415334]
[1718248954858,65.68,150.28,150.27,0.8415334]
[1718248955064,185.56,150.28,150.27,0.8415334]
[1718248955357,185.56,150.28,150.15,16.2069]
[1718248955358,119.88,150.26,150.15,16.2069]
[1718248955534,45.34,150.25,150.15,16.2069]
[1718248955735,20.0,150.24,150.15,16.2069]
[1718248956758,20.0,150.24,150.12,0.8415334]
[1718248956927,20.0,150.24,150.13,0.34]
[1718248957242,20.17,150.28,150.13,0.34]
[1718248957447,20.17,150.28,150.12,1.1815334]
[1718248957448,0.17,150.25,150.12,0.8415334]
[1718248957748,65.68,150.25,150.12,0.8415334]
[1718248957918,65.51,150.25,150.12,0.8415334]
[1718248958122,20.0,150.25,150.12,0.8415334]
[1718248958432,0.17,150.24,150.12,0.8415334]
[1718248958624,65.51,150.24,150.12,0.8415334]
[1718248959650,20.0,150.24,150.13,0.17]
[1718248959949,0.17,150.25,150.12,0.8415334]
[1718248960245,20.51,150.25,150.12,0.8415334]
[1718248961030,45.17,150.24,150.12,0.8415334]
[1718248961450,20.17,150.23,150.12,0.8415334]
[1718248961643,145.51,150.22,150.12,0.8415334]
[1718248961846,20.0,150.21,150.12,0.8415334]
[1718248962448,20.17,150.23,150.12,0.8415334]
[1718248962845,20.0,150.24,150.13,0.17]
[1718248963148,20.0,150.24,150.12,0.8415334]
[1718248963357,100.0,150.24,150.12,0.8415334]
[1718248963527,123.82,150.24,150.12,0.8415334]
[1718248963731,100.0,150.22,150.12,0.8415334]
[1718248964037,20.0,150.21,150.12,0.8415334]
[1718248964438,0.51,150.22,150.12,0.8415334]
[1718248964629,45.51,150.22,150.12,0.8415334]
[1718248964832,20.0,150.21,150.12,0.8415334]
[1718248965051,0.17,150.2,150.12,0.8415334]
[1718248965265,0.34,150.2,150.12,0.8415334]
[1718248965435,0.34,150.19,150.12,0.8415334]
[1718248965637,0.17,150.17,150.12,0.8415334]
[1718248965943,20.34,150.17,150.12,0.8415334]
[1718248966155,0.17,150.16,150.12,0.8415334]
[1718248966339,0.51,150.16,150.12,0.8415334]
[1718248966735,20.0,150.17,150.12,0.8415334]
[1718248966930,0.17,150.17,150.12,0.8415334]
[1718248967137,0.17,150.15,150.12,0.8415334]
[1718248967439,20.68,150.15,150.12,0.8415334]
[1718248968559,0.17,150.13,150.12,0.8415334]
[1718248968764,45.68,150.13,150.12,0.8415334]
[1718248968966,65.68,150.13,150.12,0.8415334]
[1718248970240,65.51,150.13,150.12,0.8415334]
[1718248970475,20.0,150.13,150.12,0.8415334]
[1718248970769,20.17,150.13,150.12,0.8415334]
[1718248970968,65.0,150.13,150.12,0.8415334]
[1718248971267,20.17,150.13,150.12,0.8415334]
[1718248971465,165.68,150.13,150.12,0.8415334]
[1718248971840,23.82,150.18,150.12,0.8415334]
[1718248972344,100.0,150.17,150.12,0.8415334]
[1718248972742,23.82,150.18,150.12,0.8415334]
[1718248973467,20.0,150.17,150.12,0.8415334]
[1718248973769,20.0,150.21,150.12,0.8415334]
[1718248974270,23.82,150.24,150.12,0.8415334]
[1718248974841,100.0,150.23,150.12,0.8415334]
[1718248975040,23.82,150.24,150.12,0.8415334]
[1718248975849,23.82,150.24,150.13,16.5789]
[1718248976053,23.82,150.24,150.14,0.17]
[1718248976366,29.9908,150.32,150.14,0.68]
[1718248976367,23.98887146,150.31,150.14,0.68]
[1718248976557,100.0,150.28,150.14,0.68]
[1718248976970,118.671,150.31,150.14,0.68]
[1718248977153,100.0,150.3,150.14,0.68]
[1718248977457,23.82,150.28,150.14,0.17]